[Event "*** Titled Tuesday Blitz"]
[Site "Chess.com"]
[Date "2020.05.12"]
[Round "5"]
[White "kirillshevchenko"]
[Black "ristingho"]
[Result "1-0"]
[WhiteElo "2818"]
[BlackElo "2513"]
[TimeControl "180+1"]
[EndTime "10:55:12 PDT"]
[Termination "kirillshevchenko won on time"]

1. e4 {[%clk 0:03:00.9]} 1... c5 {[%clk 0:02:58.1]} 2. Nf3 {[%clk 0:03:00.9]}
2... d6 {[%clk 0:02:58.1]} 3. d4 {[%clk 0:03:01.5]} 3... cxd4 {[%clk 0:02:59]}
4. Nxd4 {[%clk 0:03:02.4]} 4... Nf6 {[%clk 0:02:59.4]} 5. Nc3 {[%clk 0:03:03]}
5... Nc6 {[%clk 0:02:59.7]} 6. Bg5 {[%clk 0:03:02.7]} 6... e6 {[%clk 0:02:59.7]}
7. Qd3 {[%clk 0:03:02.8]} 7... Be7 {[%clk 0:02:57.8]} 8. O-O-O {[%clk
0:03:01.1]} 8... Nxd4 {[%clk 0:02:56.6]} 9. Qxd4 {[%clk 0:03:01]} 9... O-O
{[%clk 0:02:57.1]} 10. f4 {[%clk 0:02:50.5]} 10... h6 {[%clk 0:02:56.3]} 11. Bh4
{[%clk 0:02:47.6]} 11... Qa5 {[%clk 0:02:54.8]} 12. e5 {[%clk 0:02:31.6]} 12...
dxe5 {[%clk 0:02:45.1]} 13. fxe5 {[%clk 0:02:32.5]} 13... Rd8 {[%clk 0:02:36.8]}
14. Qf4 {[%clk 0:01:32.6]} 14... Rxd1+ {[%clk 0:02:30.9]} 15. Kxd1 {[%clk
0:01:32.2]} 15... Nd5 {[%clk 0:02:02.2]} 16. Nxd5 {[%clk 0:01:20.6]} 16... Qxd5+
{[%clk 0:02:03.1]} 17. Bd3 {[%clk 0:01:20.4]} 17... g5 {[%clk 0:01:43.4]} 18.
Qg4 {[%clk 0:01:13.5]} 18... Qxe5 {[%clk 0:01:26.7]} 19. Bf2 {[%clk 0:00:52]}
19... Qxb2 {[%clk 0:01:19.4]} 20. Rf1 {[%clk 0:00:45.8]} 20... Qa1+ {[%clk
0:00:36.8]} 21. Ke2 {[%clk 0:00:40.4]} 21... Qe5+ {[%clk 0:00:36.3]} 22. Kd1
{[%clk 0:00:40.8]} 22... Qa1+ {[%clk 0:00:31.2]} 23. Kd2 {[%clk 0:00:39.5]}
23... Qxa2 {[%clk 0:00:26.4]} 24. Bd4 {[%clk 0:00:33.1]} 24... Qa5+ {[%clk
0:00:24.9]} 25. Kd1 {[%clk 0:00:31.1]} 25... e5 {[%clk 0:00:20]} 26. Qh5 {[%clk
0:00:26.2]} 26... Bg4+ {[%clk 0:00:07.1]} 27. Qxg4 {[%clk 0:00:25.9]} 27... exd4
{[%clk 0:00:07.6]} 28. Qe4 {[%clk 0:00:24.4]} 28... Bb4 {[%clk 0:00:02.3]} 29.
Qh7+ {[%clk 0:00:24]} 1-0

[Event "*** Titled Tuesday Blitz"]
[Site "Chess.com"]
[Date "2020.05.12"]
[Round "5"]
[White "Malysch"]
[Black "Chuchofrio1"]
[Result "1-0"]
[WhiteElo "2427"]
[BlackElo "2236"]
[TimeControl "180+1"]
[EndTime "10:55:12 PDT"]
[Termination "Malysch won by resignation"]

1. d4 {[%clk 0:03:00.9]} 1... f5 {[%clk 0:02:56.6]} 2. c4 {[%clk 0:03:01.8]}
2... Nf6 {[%clk 0:02:53.5]} 3. g3 {[%clk 0:03:02.2]} 3... d6 {[%clk 0:02:53.5]}
4. Bg2 {[%clk 0:03:02.7]} 4... e6 {[%clk 0:02:53.8]} 5. Nf3 {[%clk 0:03:03.3]}
5... Be7 {[%clk 0:02:54.2]} 6. O-O {[%clk 0:03:03.8]} 6... O-O {[%clk
0:02:54.9]} 7. b3 {[%clk 0:03:04.3]} 7... Nc6 {[%clk 0:02:55.6]} 8. Bb2 {[%clk
0:03:01.6]} 8... Qe8 {[%clk 0:02:56]} 9. Nc3 {[%clk 0:03:00.6]} 9... Bd8 {[%clk
0:02:56]} 10. d5 {[%clk 0:02:59.9]} 10... Nb8 {[%clk 0:02:51.2]} 11. dxe6 {[%clk
0:02:57.5]} 11... Bxe6 {[%clk 0:02:51.6]} 12. Nd4 {[%clk 0:02:56.2]} 12... Bc8
{[%clk 0:02:51.8]} 13. Qc2 {[%clk 0:02:52.4]} 13... Qh5 {[%clk 0:02:49.1]} 14.
e3 {[%clk 0:02:36.2]} 14... c6 {[%clk 0:02:40.5]} 15. Rad1 {[%clk 0:02:32.4]}
15... Na6 {[%clk 0:02:28]} 16. Nce2 {[%clk 0:02:25]} 16... Bc7 {[%clk
0:02:25.8]} 17. Nf4 {[%clk 0:02:23.4]} 17... Qf7 {[%clk 0:02:03.1]} 18. Nxf5
{[%clk 0:02:19.4]} 18... Nb4 {[%clk 0:02:01.7]} 19. Qd2 {[%clk 0:01:56.4]} 19...
Bxf5 {[%clk 0:01:50.8]} 20. Qxb4 {[%clk 0:01:54.8]} 20... Rab8 {[%clk
0:01:41.1]} 21. h3 {[%clk 0:01:48.3]} 21... Be4 {[%clk 0:01:37.6]} 22. Bxf6
{[%clk 0:01:29.9]} 22... Bxg2 {[%clk 0:01:34.4]} 23. Bxg7 {[%clk 0:01:29.9]}
23... Bxf1 {[%clk 0:01:34.5]} 24. Bxf8 {[%clk 0:01:29.2]} 24... Rxf8 {[%clk
0:01:23.7]} 25. Rxf1 {[%clk 0:01:14.9]} 25... b6 {[%clk 0:01:22.3]} 26. Qa4
{[%clk 0:01:09.4]} 26... Qf5 {[%clk 0:00:42.6]} 27. Qxc6 {[%clk 0:01:03.9]}
27... Rf7 {[%clk 0:00:42.6]} 28. Qd5 {[%clk 0:00:59.7]} 28... Qd7 {[%clk
0:00:39.6]} 29. Qe6 {[%clk 0:00:53.7]} 29... Qd8 {[%clk 0:00:32]} 30. Nd5 {[%clk
0:00:50.8]} 30... Bb8 {[%clk 0:00:28.9]} 31. Rd1 {[%clk 0:00:48.9]} 31... Kg7
{[%clk 0:00:23.6]} 32. Nf4 {[%clk 0:00:46]} 32... Kf8 {[%clk 0:00:08.8]} 33.
Qh6+ {[%clk 0:00:41.1]} 33... Kg8 {[%clk 0:00:08]} 34. Rd5 {[%clk 0:00:37.5]}
34... Rg7 {[%clk 0:00:06.9]} 35. Qxg7+ {[%clk 0:00:35.5]} 35... Kxg7 {[%clk
0:00:06.5]} 36. Ne6+ {[%clk 0:00:35.6]} 1-0

[Event "*** Titled Tuesday Blitz"]
[Site "Chess.com"]
[Date "2020.05.12"]
[Round "5"]
[White "S2PAc"]
[Black "Oleksandr_Bortnyk"]
[Result "0-1"]
[WhiteElo "2777"]
[BlackElo "2986"]
[TimeControl "180+1"]
[EndTime "10:55:21 PDT"]
[Termination "Oleksandr_Bortnyk won by resignation"]

1. d4 {[%clk 0:03:00.9]} 1... d6 {[%clk 0:02:58.3]} 2. g3 {[%clk 0:02:59.7]}
2... Nf6 {[%clk 0:02:57.8]} 3. Bg2 {[%clk 0:02:59.7]} 3... g6 {[%clk 0:02:46.5]}
4. e4 {[%clk 0:02:59.7]} 4... Bg7 {[%clk 0:02:44.1]} 5. Nc3 {[%clk 0:02:56.8]}
5... O-O {[%clk 0:02:40.7]} 6. Nge2 {[%clk 0:02:56.5]} 6... c5 {[%clk
0:02:33.9]} 7. dxc5 {[%clk 0:02:56.1]} 7... dxc5 {[%clk 0:02:32.8]} 8. Qxd8
{[%clk 0:02:57]} 8... Rxd8 {[%clk 0:02:33.4]} 9. Be3 {[%clk 0:02:57.4]} 9... Na6
{[%clk 0:02:28.1]} 10. h3 {[%clk 0:02:55.7]} 10... e5 {[%clk 0:02:02]} 11. a3
{[%clk 0:02:30.8]} 11... Be6 {[%clk 0:01:58.4]} 12. f4 {[%clk 0:02:31.2]} 12...
Rab8 {[%clk 0:01:50.9]} 13. Nb5 {[%clk 0:02:10.3]} 13... Bc4 {[%clk 0:01:14.1]}
14. Nec3 {[%clk 0:02:10.2]} 14... Nh5 {[%clk 0:01:14]} 15. Kf2 {[%clk
0:02:04.7]} 15... exf4 {[%clk 0:01:14.3]} 16. gxf4 {[%clk 0:02:05]} 16... Bxb5
{[%clk 0:00:58.9]} 17. Nxb5 {[%clk 0:02:05.9]} 17... Bxb2 {[%clk 0:00:59.5]} 18.
Rad1 {[%clk 0:01:55.4]} 18... Bd4 {[%clk 0:01:00.4]} 19. Nxd4 {[%clk 0:00:55.5]}
19... cxd4 {[%clk 0:01:01.3]} 20. Bxd4 {[%clk 0:00:56.4]} 20... Rbc8 {[%clk
0:00:57.8]} 21. Kf3 {[%clk 0:00:47.2]} 21... Rxc2 {[%clk 0:00:55]} 22. Bxa7
{[%clk 0:00:45.1]} 22... Rc3+ {[%clk 0:00:41.7]} 23. Be3 {[%clk 0:00:45.5]}
23... Re8 {[%clk 0:00:39.5]} 24. Rc1 {[%clk 0:00:30.2]} 24... Rxa3 {[%clk
0:00:36.9]} 25. Rhd1 {[%clk 0:00:30.7]} 25... Nb4 {[%clk 0:00:30.8]} 26. Bf1
{[%clk 0:00:30.1]} 26... Nc6 {[%clk 0:00:20.5]} 27. Rd3 {[%clk 0:00:25.9]} 27...
Ra4 {[%clk 0:00:18.3]} 28. e5 {[%clk 0:00:19.6]} 28... g5 {[%clk 0:00:18.7]} 29.
Rb3 {[%clk 0:00:09.8]} 29... Nxf4 {[%clk 0:00:18.3]} 30. Rxb7 {[%clk 0:00:06.3]}
30... Nxe5+ {[%clk 0:00:18.5]} 31. Kg3 {[%clk 0:00:06]} 31... Ra3 {[%clk
0:00:17.7]} 32. h4 {[%clk 0:00:02]} 0-1

[Event "*** Titled Tuesday Blitz"]
[Site "Chess.com"]
[Date "2020.05.12"]
[Round "5"]
[White "Konavets"]
[Black "FMJoseHerrera"]
[Result "0-1"]
[WhiteElo "2928"]
[BlackElo "2634"]
[TimeControl "180+1"]
[EndTime "10:55:22 PDT"]
[Termination "FMJoseHerrera won by checkmate"]

1. e4 {[%clk 0:03:00.9]} 1... c5 {[%clk 0:02:59.2]} 2. Nf3 {[%clk 0:03:00.7]}
2... e6 {[%clk 0:02:58.5]} 3. d4 {[%clk 0:03:01.1]} 3... cxd4 {[%clk 0:02:59.4]}
4. Bg5 {[%clk 0:03:00.8]} 4... Qc7 {[%clk 0:02:55]} 5. Nxd4 {[%clk 0:02:59.7]}
5... a6 {[%clk 0:02:54.7]} 6. Nc3 {[%clk 0:02:58.9]} 6... d6 {[%clk 0:02:53.7]}
7. Qf3 {[%clk 0:02:58.4]} 7... Nd7 {[%clk 0:02:52.6]} 8. O-O-O {[%clk 0:02:58]}
8... Ngf6 {[%clk 0:02:51.6]} 9. Qg3 {[%clk 0:02:57.4]} 9... Be7 {[%clk
0:02:46.4]} 10. f4 {[%clk 0:02:56.1]} 10... h6 {[%clk 0:02:45]} 11. Bh4 {[%clk
0:02:54.6]} 11... b5 {[%clk 0:02:33]} 12. Qxg7 {[%clk 0:02:09]} 12... Rg8 {[%clk
0:02:21.5]} 13. Qxh6 {[%clk 0:02:09]} 13... b4 {[%clk 0:02:20.3]} 14. Bxf6
{[%clk 0:01:36.3]} 14... Nxf6 {[%clk 0:02:20.3]} 15. Nce2 {[%clk 0:01:29.5]}
15... Nxe4 {[%clk 0:02:16]} 16. g3 {[%clk 0:01:14.7]} 16... Bf6 {[%clk
0:01:51.1]} 17. Qh7 {[%clk 0:01:12.3]} 17... Bb7 {[%clk 0:01:40.4]} 18. Nxe6
{[%clk 0:00:53.3]} 18... Qa5 {[%clk 0:01:31.4]} 19. Ng5 {[%clk 0:00:17.2]} 19...
Rxg5 {[%clk 0:00:49.6]} 20. Kb1 {[%clk 0:00:16.8]} 20... Rd5 {[%clk 0:00:42.9]}
21. Qxe4+ {[%clk 0:00:15]} 21... Kf8 {[%clk 0:00:40.3]} 22. Rc1 {[%clk
0:00:10.5]} 22... Re8 {[%clk 0:00:34.2]} 23. Qf3 {[%clk 0:00:10.5]} 23... Rb5
{[%clk 0:00:29.2]} 24. Qd3 {[%clk 0:00:09.3]} 24... Bxh1 {[%clk 0:00:28.7]} 25.
Bh3 {[%clk 0:00:07.5]} 25... Bd5 {[%clk 0:00:27.1]} 26. b3 {[%clk 0:00:03.7]}
26... Rxe2 {[%clk 0:00:27.3]} 27. Qxe2 {[%clk 0:00:02.9]} 27... Qa3 {[%clk
0:00:26.9]} 28. c4 {[%clk 0:00:03.1]} 28... bxc3 {[%clk 0:00:26.9]} 29. Bd7
{[%clk 0:00:03.3]} 29... Ra5 {[%clk 0:00:19.7]} 30. Ba4 {[%clk 0:00:01.6]} 30...
Rxa4 {[%clk 0:00:19.2]} 31. bxa4 {[%clk 0:00:02.5]} 31... Be4+ {[%clk
0:00:19.1]} 32. Qxe4 {[%clk 0:00:02.4]} 32... Qb2# {[%clk 0:00:18.5]} 0-1

[Event "*** Titled Tuesday Blitz"]
[Site "Chess.com"]
[Date "2020.05.12"]
[Round "5"]
[White "A-Fier"]
[Black "GMartin_Petrov"]
[Result "1-0"]
[WhiteElo "2769"]
[BlackElo "2582"]
[TimeControl "180+1"]
[EndTime "10:55:22 PDT"]
[Termination "A-Fier won on time"]

1. e4 {[%clk 0:03:00.9]} 1... c5 {[%clk 0:02:59.1]} 2. Nf3 {[%clk 0:03:00.6]}
2... d6 {[%clk 0:02:59.3]} 3. d4 {[%clk 0:03:01.1]} 3... cxd4 {[%clk 0:03:00.2]}
4. Nxd4 {[%clk 0:03:01.7]} 4... Nf6 {[%clk 0:03:00.6]} 5. Nc3 {[%clk 0:03:02.3]}
5... a6 {[%clk 0:03:00.9]} 6. Bg5 {[%clk 0:03:02.5]} 6... e6 {[%clk 0:02:58.9]}
7. f4 {[%clk 0:03:02.9]} 7... h6 {[%clk 0:02:59]} 8. Bh4 {[%clk 0:03:02.7]} 8...
Qb6 {[%clk 0:02:58.9]} 9. Qd2 {[%clk 0:03:03.1]} 9... Qxb2 {[%clk 0:02:56.5]}
10. Rb1 {[%clk 0:03:03.2]} 10... Qa3 {[%clk 0:02:56.6]} 11. e5 {[%clk
0:03:03.3]} 11... dxe5 {[%clk 0:02:56.5]} 12. fxe5 {[%clk 0:03:03.7]} 12... Nfd7
{[%clk 0:02:56.5]} 13. Ne4 {[%clk 0:03:02.9]} 13... Qxa2 {[%clk 0:02:52.4]} 14.
Rd1 {[%clk 0:03:03.2]} 14... Qd5 {[%clk 0:02:52.3]} 15. Qe3 {[%clk 0:03:03.4]}
15... Qxe5 {[%clk 0:02:50.8]} 16. Be2 {[%clk 0:03:04]} 16... Bc5 {[%clk
0:02:29.6]} 17. Bg3 {[%clk 0:03:03.8]} 17... Bxd4 {[%clk 0:02:27]} 18. Rxd4
{[%clk 0:03:04.7]} 18... Qa5+ {[%clk 0:02:26.5]} 19. Rd2 {[%clk 0:03:05.3]}
19... O-O {[%clk 0:02:24.9]} 20. Bd6 {[%clk 0:03:05.8]} 20... f5 {[%clk
0:02:21.2]} 21. Bxf8 {[%clk 0:03:05.5]} 21... Nxf8 {[%clk 0:02:18.9]} 22. Nd6
{[%clk 0:03:06.1]} 22... Nbd7 {[%clk 0:02:07.4]} 23. O-O {[%clk 0:03:02.9]}
23... Qc5 {[%clk 0:02:06.8]} 24. Kf2 {[%clk 0:02:55.8]} 24... b5 {[%clk
0:01:45.4]} 25. g4 {[%clk 0:02:42.4]} 25... fxg4 {[%clk 0:01:37.7]} 26. Bxg4
{[%clk 0:02:39.7]} 26... Rb8 {[%clk 0:01:26.8]} 27. Qxc5 {[%clk 0:02:22.1]}
27... Nxc5 {[%clk 0:01:26]} 28. Ke3 {[%clk 0:02:23]} 28... Bd7 {[%clk
0:01:19.4]} 29. Kd4 {[%clk 0:02:20]} 29... Nb7 {[%clk 0:01:01.2]} 30. Nxb7
{[%clk 0:02:11]} 30... Rxb7 {[%clk 0:01:02.1]} 31. Bh5 {[%clk 0:02:09.9]} 31...
Bc6 {[%clk 0:00:57.4]} 32. Rdf2 {[%clk 0:02:04.9]} 32... Nh7 {[%clk 0:00:49.4]}
33. Bf7+ {[%clk 0:02:03.9]} 33... Kh8 {[%clk 0:00:48.1]} 34. Bxe6 {[%clk
0:02:04.1]} 34... Re7 {[%clk 0:00:41.9]} 35. Bb3 {[%clk 0:01:50.9]} 35... Nf6
{[%clk 0:00:35.6]} 36. Rf4 {[%clk 0:01:46.1]} 36... Rd7+ {[%clk 0:00:31.1]} 37.
Kc5 {[%clk 0:01:45.9]} 37... Bd5 {[%clk 0:00:31.4]} 38. Ra1 {[%clk 0:01:42.1]}
38... Bxb3 {[%clk 0:00:30.2]} 39. cxb3 {[%clk 0:01:42]} 39... Rd3 {[%clk
0:00:21.8]} 40. b4 {[%clk 0:01:38.3]} 40... Rc3+ {[%clk 0:00:21.9]} 41. Kd6
{[%clk 0:01:38.7]} 41... Rh3 {[%clk 0:00:15.1]} 42. Ra2 {[%clk 0:01:29.7]} 42...
Kh7 {[%clk 0:00:14.5]} 43. Kc6 {[%clk 0:01:29.8]} 43... Re3 {[%clk 0:00:13.3]}
44. Kb7 {[%clk 0:01:29.7]} 44... Nd5 {[%clk 0:00:11.3]} 45. Rd4 {[%clk
0:01:28.6]} 45... Nc3 {[%clk 0:00:10.5]} 46. Rxa6 {[%clk 0:01:27.3]} 46... Re7+
{[%clk 0:00:10]} 47. Kb8 {[%clk 0:01:26.2]} 47... Re2 {[%clk 0:00:06.3]} 48. Rc6
{[%clk 0:01:26.1]} 48... Na4 {[%clk 0:00:05.8]} 49. h4 {[%clk 0:01:26]} 49...
Nb2 {[%clk 0:00:01.8]} 50. Rc5 {[%clk 0:01:24.8]} 50... Re8+ {[%clk 0:00:01.6]}
51. Kb7 {[%clk 0:01:24.5]} 51... Nc4 {[%clk 0:00:01.6]} 52. Rxb5 {[%clk
0:01:23.3]} 52... Ne5 {[%clk 0:00:02.1]} 53. Re4 {[%clk 0:01:19.4]} 53... Re7+
{[%clk 0:00:02.5]} 54. Kc8 {[%clk 0:01:19.2]} 54... Re8+ {[%clk 0:00:02.6]} 55.
Kc7 {[%clk 0:01:19.4]} 55... Re7+ {[%clk 0:00:01.6]} 56. Kd6 {[%clk 0:01:19.8]}
1-0

[Event "*** Titled Tuesday Blitz"]
[Site "Chess.com"]
[Date "2020.05.12"]
[Round "5"]
[White "AlexZambrano"]
[Black "tamarozi99"]
[Result "1-0"]
[WhiteElo "2288"]
[BlackElo "1964"]
[TimeControl "180+1"]
[EndTime "10:55:26 PDT"]
[Termination "AlexZambrano won by resignation"]

1. Nf3 {[%clk 0:03:00]} 1... g6 {[%clk 0:02:58.8]} 2. g3 {[%clk 0:02:59.6]} 2...
Bg7 {[%clk 0:02:59]} 3. d4 {[%clk 0:03:00.1]} 3... Nf6 {[%clk 0:02:57.9]} 4. Bg2
{[%clk 0:03:01]} 4... d6 {[%clk 0:02:58]} 5. O-O {[%clk 0:03:01.2]} 5... O-O
{[%clk 0:02:58.4]} 6. c4 {[%clk 0:03:01.7]} 6... a6 {[%clk 0:02:57.5]} 7. Nc3
{[%clk 0:03:01.6]} 7... Nc6 {[%clk 0:02:57.3]} 8. e4 {[%clk 0:03:01.7]} 8... Na5
{[%clk 0:02:38]} 9. Qd3 {[%clk 0:02:46.1]} 9... c5 {[%clk 0:02:33.3]} 10. d5
{[%clk 0:02:41.6]} 10... Rb8 {[%clk 0:02:30.5]} 11. Bf4 {[%clk 0:02:27]} 11...
b5 {[%clk 0:02:12]} 12. cxb5 {[%clk 0:02:25.9]} 12... c4 {[%clk 0:02:11.9]} 13.
Qe3 {[%clk 0:02:06.6]} 13... axb5 {[%clk 0:02:10.5]} 14. e5 {[%clk 0:02:06.5]}
14... Ng4 {[%clk 0:02:03.8]} 15. Qe2 {[%clk 0:01:57.1]} 15... b4 {[%clk
0:01:43.8]} 16. exd6 {[%clk 0:01:45]} 16... exd6 {[%clk 0:01:34.9]} 17. Ne4
{[%clk 0:01:10.4]} 17... Ne5 {[%clk 0:01:33.9]} 18. Nxe5 {[%clk 0:01:06.9]}
18... dxe5 {[%clk 0:01:33.1]} 19. Bg5 {[%clk 0:00:50.3]} 19... f6 {[%clk
0:01:20.9]} 20. Be3 {[%clk 0:00:45.4]} 20... Ba6 {[%clk 0:01:18.2]} 21. Nc5
{[%clk 0:00:37.7]} 21... Bb5 {[%clk 0:01:10.9]} 22. Ne6 {[%clk 0:00:36.6]} 22...
Qe7 {[%clk 0:01:05.7]} 23. Bc5 {[%clk 0:00:35.2]} 23... Qe8 {[%clk 0:00:56.8]}
24. Nc7 {[%clk 0:00:19]} 24... Qd7 {[%clk 0:00:50.4]} 25. Nxb5 {[%clk
0:00:19.3]} 25... Qxb5 {[%clk 0:00:50.4]} 26. Bxf8 {[%clk 0:00:19.2]} 26... Bxf8
{[%clk 0:00:51.3]} 27. Rfc1 {[%clk 0:00:17.5]} 27... Rc8 {[%clk 0:00:49.8]} 28.
b3 {[%clk 0:00:16.5]} 28... Bd6 {[%clk 0:00:32.4]} 29. bxc4 {[%clk 0:00:16.7]}
29... Nxc4 {[%clk 0:00:32.2]} 30. Bf1 {[%clk 0:00:17]} 30... Qxd5 {[%clk
0:00:28.7]} 31. Rxc4 {[%clk 0:00:16.7]} 31... Bc5 {[%clk 0:00:27.5]} 32. Rac1
{[%clk 0:00:15.9]} 32... Rc6 {[%clk 0:00:27.4]} 33. Qc2 {[%clk 0:00:15.7]} 33...
Bxf2+ {[%clk 0:00:24.1]} 34. Qxf2 {[%clk 0:00:12.8]} 34... Rxc4 {[%clk
0:00:24.4]} 35. Bxc4 {[%clk 0:00:12.7]} 35... Qxc4 {[%clk 0:00:23.6]} 36. Rxc4
{[%clk 0:00:13.2]} 36... Kg7 {[%clk 0:00:22.8]} 37. Rxb4 {[%clk 0:00:13.5]} 1-0

[Event "*** Titled Tuesday Blitz"]
[Site "Chess.com"]
[Date "2020.05.12"]
[Round "5"]
[White "hongnhung1234"]
[Black "Al_Shima"]
[Result "1-0"]
[WhiteElo "2256"]
[BlackElo "2415"]
[TimeControl "180+1"]
[EndTime "10:55:28 PDT"]
[Termination "hongnhung1234 won on time"]

1. e4 {[%clk 0:03:00.9]} 1... d5 {[%clk 0:02:59.5]} 2. exd5 {[%clk 0:03:01.8]}
2... Nf6 {[%clk 0:02:59.1]} 3. d4 {[%clk 0:03:01.7]} 3... Nxd5 {[%clk
0:02:59.2]} 4. c4 {[%clk 0:03:00.9]} 4... Nb6 {[%clk 0:02:59.3]} 5. Nc3 {[%clk
0:03:01.3]} 5... e5 {[%clk 0:02:59.3]} 6. Nf3 {[%clk 0:02:53.2]} 6... exd4
{[%clk 0:02:58.2]} 7. Qxd4 {[%clk 0:02:53]} 7... Qxd4 {[%clk 0:02:58.2]} 8. Nxd4
{[%clk 0:02:53.9]} 8... Bb4 {[%clk 0:02:58.4]} 9. a3 {[%clk 0:02:48.6]} 9...
Bxc3+ {[%clk 0:02:58.2]} 10. bxc3 {[%clk 0:02:49.5]} 10... c6 {[%clk 0:02:57.3]}
11. Bd3 {[%clk 0:02:46.8]} 11... O-O {[%clk 0:02:55.4]} 12. O-O {[%clk
0:02:46.6]} 12... Rd8 {[%clk 0:02:55.5]} 13. c5 {[%clk 0:02:43.2]} 13... Na4
{[%clk 0:02:49.5]} 14. Bg5 {[%clk 0:02:28.5]} 14... f6 {[%clk 0:02:23.2]} 15.
Bc4+ {[%clk 0:02:27]} 15... Kf8 {[%clk 0:02:22.9]} 16. Bf4 {[%clk 0:02:06.3]}
16... Nxc5 {[%clk 0:02:13.2]} 17. Rfe1 {[%clk 0:02:04]} 17... b5 {[%clk
0:02:04.8]} 18. Bxb8 {[%clk 0:01:51.7]} 18... bxc4 {[%clk 0:01:36.5]} 19. Nxc6
{[%clk 0:01:50.3]} 19... Rd3 {[%clk 0:01:20.9]} 20. Re3 {[%clk 0:01:42.7]} 20...
Bd7 {[%clk 0:01:15.1]} 21. Rxd3 {[%clk 0:01:40]} 21... Nxd3 {[%clk 0:01:14.8]}
22. Bd6+ {[%clk 0:01:39.2]} 22... Kf7 {[%clk 0:01:13.8]} 23. Nd4 {[%clk
0:01:18.8]} 23... Ba4 {[%clk 0:01:13.5]} 24. Rb1 {[%clk 0:01:16.7]} 24... Re8
{[%clk 0:00:57.8]} 25. Rb7+ {[%clk 0:01:13]} 25... Kg6 {[%clk 0:00:57.6]} 26. h4
{[%clk 0:01:12.3]} 26... h5 {[%clk 0:00:48.8]} 27. Rxa7 {[%clk 0:01:07.3]} 27...
Bd1 {[%clk 0:00:41.1]} 28. Bg3 {[%clk 0:01:02.3]} 28... Nc5 {[%clk 0:00:34.9]}
29. Rc7 {[%clk 0:00:57.6]} 29... Re1+ {[%clk 0:00:28.8]} 30. Kh2 {[%clk
0:00:57]} 30... Ne4 {[%clk 0:00:28.6]} 31. Rxc4 {[%clk 0:00:55.8]} 31... Nd2
{[%clk 0:00:28.7]} 32. f3 {[%clk 0:00:32.8]} 32... Rf1 {[%clk 0:00:06.8]} 33.
Rc7 {[%clk 0:00:25.1]} 33... Ba4 {[%clk 0:00:05.2]} 34. Ne6 {[%clk 0:00:24]}
34... Ra1 {[%clk 0:00:02.6]} 35. Rxg7+ {[%clk 0:00:22.8]} 1-0

[Event "*** Titled Tuesday Blitz"]
[Site "Chess.com"]
[Date "2020.05.12"]
[Round "5"]
[White "BhulseATX"]
[Black "DonBroca"]
[Result "1/2-1/2"]
[WhiteElo "1970"]
[BlackElo "2224"]
[TimeControl "180+1"]
[EndTime "10:55:28 PDT"]
[Termination "Game drawn - insufficient material"]

1. d4 {[%clk 0:03:00.9]} 1... Nf6 {[%clk 0:02:57.1]} 2. Nf3 {[%clk 0:03:00.7]}
2... c5 {[%clk 0:02:57]} 3. c4 {[%clk 0:02:57.6]} 3... g6 {[%clk 0:02:55.6]} 4.
Nc3 {[%clk 0:02:56.7]} 4... Bg7 {[%clk 0:02:56]} 5. e4 {[%clk 0:02:51.1]} 5...
cxd4 {[%clk 0:02:51.3]} 6. Nxd4 {[%clk 0:02:51.1]} 6... O-O {[%clk 0:02:51.6]}
7. Be2 {[%clk 0:02:49.7]} 7... Nc6 {[%clk 0:02:51.7]} 8. Nc2 {[%clk 0:02:48.9]}
8... b6 {[%clk 0:02:48.3]} 9. O-O {[%clk 0:02:48.2]} 9... Bb7 {[%clk 0:02:48.7]}
10. Be3 {[%clk 0:02:46.2]} 10... d6 {[%clk 0:02:44]} 11. b3 {[%clk 0:02:45.8]}
11... Rc8 {[%clk 0:02:41.9]} 12. Rc1 {[%clk 0:02:43.6]} 12... e6 {[%clk
0:02:42.1]} 13. Nd4 {[%clk 0:02:32]} 13... d5 {[%clk 0:02:28.5]} 14. cxd5 {[%clk
0:02:27]} 14... exd5 {[%clk 0:02:28.2]} 15. exd5 {[%clk 0:02:09.7]} 15... Nxd5
{[%clk 0:02:22.9]} 16. Nxd5 {[%clk 0:02:07.4]} 16... Qxd5 {[%clk 0:02:21.1]} 17.
Nxc6 {[%clk 0:02:06.9]} 17... Bxc6 {[%clk 0:02:17.3]} 18. Qxd5 {[%clk
0:02:06.2]} 18... Bxd5 {[%clk 0:02:17]} 19. Ba6 {[%clk 0:02:05.9]} 19... Rxc1
{[%clk 0:02:10]} 20. Rxc1 {[%clk 0:02:05.2]} 20... Be5 {[%clk 0:02:08.8]} 21.
Rc8 {[%clk 0:02:01.4]} 21... Rxc8 {[%clk 0:02:02.4]} 22. Bxc8 {[%clk 0:02:00.9]}
22... Kf8 {[%clk 0:02:00.8]} 23. h3 {[%clk 0:01:55.2]} 23... Ke7 {[%clk
0:01:58.2]} 24. f4 {[%clk 0:01:48.9]} 24... Bc3 {[%clk 0:01:53.3]} 25. Kf2
{[%clk 0:01:48.3]} 25... Kd6 {[%clk 0:01:50.1]} 26. f5 {[%clk 0:01:36.5]} 26...
Be4 {[%clk 0:01:41.7]} 27. fxg6 {[%clk 0:01:34.8]} 27... fxg6 {[%clk 0:01:38.6]}
28. Ba6 {[%clk 0:01:32.5]} 28... h5 {[%clk 0:01:37.2]} 29. Bc4 {[%clk
0:01:30.4]} 29... Bd5 {[%clk 0:01:33.9]} 30. Bd3 {[%clk 0:01:28.5]} 30... Bf7
{[%clk 0:01:30.7]} 31. g4 {[%clk 0:01:26.3]} 31... Bf6 {[%clk 0:01:23.5]} 32.
Kg3 {[%clk 0:01:17.4]} 32... hxg4 {[%clk 0:00:50.5]} 33. hxg4 {[%clk 0:01:15.3]}
33... g5 {[%clk 0:00:46]} 34. Bc4 {[%clk 0:00:58.7]} 34... Bxc4 {[%clk
0:00:41.8]} 35. bxc4 {[%clk 0:00:57.6]} 35... Ke5 {[%clk 0:00:41.9]} 36. Kf3
{[%clk 0:00:53.7]} 36... Be7 {[%clk 0:00:39.5]} 37. a4 {[%clk 0:00:53.1]} 37...
Bc5 {[%clk 0:00:27.8]} 38. Bxg5 {[%clk 0:00:50.5]} 38... Kd4 {[%clk 0:00:28]}
39. Be3+ {[%clk 0:00:49.8]} 39... Kxc4 {[%clk 0:00:25.8]} 40. Bxc5 {[%clk
0:00:48.7]} 40... Kxc5 {[%clk 0:00:24.5]} 41. Ke4 {[%clk 0:00:47.2]} 41... Kd6
{[%clk 0:00:23.1]} 42. Kd4 {[%clk 0:00:40.3]} 42... a6 {[%clk 0:00:22.2]} 43. g5
{[%clk 0:00:36.4]} 43... Ke6 {[%clk 0:00:22]} 44. g6 {[%clk 0:00:35.7]} 44...
Kf6 {[%clk 0:00:20.1]} 45. Kd5 {[%clk 0:00:35.7]} 45... Kxg6 {[%clk 0:00:16.1]}
46. Kc6 {[%clk 0:00:35.5]} 46... b5 {[%clk 0:00:15.9]} 47. axb5 {[%clk
0:00:35.6]} 47... axb5 {[%clk 0:00:09.8]} 48. Kxb5 {[%clk 0:00:35.6]} 1/2-1/2